bitfinex-derivatives/quotes_SOLF0:USTF0_20260204
["timestamp","ask_amount","ask_price","bid_price","bid_amount"]
[1770218683380,32.59206167,93.961,93.864,9.6031]
[1770218683979,32.39076475,93.958,93.864,9.6031]
[1770218684181,32.39076475,93.958,93.847,9.6049]
[1770218684483,32.39076475,93.958,93.82,29.15684121]
[1770218685089,32.39076475,93.922,93.8,29.15684121]
[1770218685691,32.39076475,93.922,93.847,9.6048]
[1770218685890,32.39076475,93.922,93.8,29.15684121]
[1770218686091,32.39076475,93.922,93.81,149.4679]
[1770218686288,32.39076475,93.922,93.809,225.72]
[1770218686796,32.38993297,93.908,93.811,9.6085]
[1770218687388,32.38993297,93.906,93.799,9.6098]
[1770218687587,32.38993297,93.906,93.77,29.15684121]
[1770218687886,32.38993297,93.906,93.821,9.6075]
[1770218688087,32.38993297,93.906,93.774,225.78]
[1770218688584,32.35984631,93.887,93.774,225.78]
[1770218688788,32.35984631,93.912,93.8,29.15684121]
[1770218688989,32.35984631,93.912,93.844,9.6052]
[1770218689193,32.35984631,93.912,93.8,29.15684121]
[1770218690490,32.34639362,93.91,93.81,9.6086]
[1770218690996,32.34639362,93.91,93.8,29.15684121]
[1770218692091,32.35970676,93.903,93.8,29.15684121]
[1770218692696,32.35970676,93.903,93.838,9.6058]
[1770218693798,32.35970676,93.903,93.8,29.15684121]
[1770218695196,32.35970676,93.903,93.838,9.6058]
[1770218695496,32.35970676,93.903,93.803,225.72]
[1770218695692,32.35970676,93.903,93.8,29.15684121]
[1770218695693,32.38330882,93.9,93.815,9.6081]
[1770218695893,32.13,93.899,93.77,225.72]
[1770218696194,32.38330882,93.9,93.76,29.15684121]
[1770218696195,32.38330882,93.892,93.76,29.15684121]
[1770218696394,32.38330882,93.866,93.78,9.6117]
[1770218696594,32.38330882,93.866,93.73,29.15684121]
[1770218696898,32.38330882,93.866,93.779,9.6118]
[1770218697099,32.38330882,93.866,93.732,225.72]
[1770218697301,32.38330882,93.849,93.755,9.6143]
[1770218697603,32.38330882,93.849,93.732,225.72]
[1770218697796,32.37891357,93.846,93.7,29.15684121]
[1770218697989,32.37891357,93.819,93.7,29.15684121]
[1770218698191,32.37891357,93.819,93.701,375.4818]
[1770218698389,32.37891357,93.819,93.756,9.6142]
[1770218698695,32.37891357,93.819,93.703,19.2394]
[1770218698891,32.37891357,93.819,93.703,51.3694]
[1770218699599,32.37891357,93.819,93.593,26.09307694]
[1770218699600,32.37891357,93.819,93.73,29.15684121]
[1770218700299,32.37891357,93.819,93.764,9.6133]
[1770218700494,32.37891357,93.819,93.73,29.15684121]
[1770218700695,32.37891357,93.819,93.68,29.15684121]
[1770218700895,32.3551507,93.798,93.68,29.15684121]
[1770218701094,32.3551507,93.798,93.71,29.15684121]
[1770218701497,32.3551507,93.844,93.71,29.15684121]
[1770218701800,32.323908,93.833,93.71,255.45684121]
[1770218702292,32.323908,93.833,93.777,9.612]
[1770218702492,32.323908,93.833,93.77,7.79842656]
[1770218702696,32.323908,93.833,93.75,7.79842656]
[1770218702889,32.323908,93.833,93.711,226.4]
[1770218702890,32.323908,93.833,93.76,7.79842656]
[1770218703494,32.323908,93.881,93.78,7.79842656]
[1770218703697,32.323908,93.881,93.76,7.79842656]
[1770218704199,32.35246792,93.846,93.76,7.79842656]
[1770218704995,32.35246792,93.846,93.773,9.6125]
[1770218705401,32.35246792,93.846,93.74,7.79842656]
[1770218705601,32.35246792,93.822,93.659,213.26]
[1770218705900,32.35246792,93.822,93.621,149.7704]
[1770218705901,32.34972711,93.809,93.71,7.79842656]
[1770218706398,32.34972711,93.809,93.7,7.79842656]
[1770218706597,32.34972711,93.809,93.72,7.79842656]
[1770218707401,32.34972711,93.806,93.72,7.79842656]
[1770218708106,32.34972711,93.806,93.74,7.79842656]
[1770218708895,7.79842656,93.87,93.773,9.6125]
[1770218708896,32.50250959,93.829,93.773,9.6125]
[1770218709096,32.50250959,93.889,93.78,7.79842656]
[1770218709604,32.50250959,93.872,93.783,9.6114]
[1770218709906,32.50250959,93.872,93.8,7.79842656]
[1770218710105,32.50250959,93.872,93.82,7.79842656]
[1770218710502,32.43879114,93.898,93.813,9.6083]
[1770218710700,32.43879114,93.898,93.8,31.31029134]
[1770218711102,32.43879114,93.898,93.827,9.6069]
[1770218711302,32.43879114,93.898,93.8,31.31029134]
[1770218711494,32.43879114,93.898,93.844,9.6051]
[1770218711805,32.43879114,93.898,93.8,31.31029134]
[1770218713002,32.43879114,93.898,93.802,19.219]
[1770218713205,32.41827939,93.956,93.8,31.31029134]
[1770218713400,32.41827939,93.946,93.83,31.31029134]
[1770218714001,32.41827939,93.946,93.814,149.4627]
[1770218714002,32.41827939,93.946,93.885,9.601]
[1770218714399,32.41827939,93.946,93.831,149.4353]
[1770218714400,32.41827939,93.946,93.844,226.6]
[1770218714604,32.41827939,93.946,93.83,31.31029134]
[1770218714605,32.41827939,93.946,93.86,9.6035]
[1770218715006,32.41827939,93.946,93.83,31.31029134]
[1770218715705,32.41827939,93.946,93.872,9.6022]
[1770218715902,32.41827939,93.946,93.83,31.31029134]
[1770218717101,32.41827939,93.946,93.859,9.6036]
[1770218717408,32.41827939,93.946,93.83,31.31029134]
[1770218717610,32.41827939,93.946,93.86,31.31029134]
[1770218718202,32.41827939,93.946,93.83,31.31029134]
[1770218718405,32.41827939,93.946,93.86,20.84810297]
[1770218718598,32.41827939,93.946,93.83,20.84810297]
[1770218719402,32.41827939,93.946,93.833,149.4323]
[1770218719602,32.41827939,93.946,93.86,20.84810297]
[1770218720706,32.41827939,93.946,93.883,9.6011]
[1770218720903,32.41827939,93.946,93.86,20.84810297]
[1770218721506,32.41827939,93.946,93.84,6.0]
[1770218721708,32.18560854,93.943,93.794,19.2207]
[1770218721904,32.18560854,93.943,93.79,20.84810297]
[1770218722109,32.18560854,93.943,93.861,9.6034]
[1770218722798,32.18560854,93.943,93.79,20.84810297]
[1770218722998,32.13,93.942,93.79,20.84810297]
[1770218723200,32.18560854,93.91,93.79,20.84810297]
[1770218723808,32.18560854,93.91,93.837,9.6059]
[1770218724008,32.18560854,93.91,93.791,149.499]
[1770218724305,32.18560854,93.91,93.848,9.6047]
[1770218724505,32.18560854,93.91,93.792,227.14]
[1770218724899,32.18560854,93.91,93.84,9.6055]
[1770218725108,32.18560854,93.91,93.82,20.84810297]
[1770218725405,32.18560854,93.91,93.792,227.14]
[1770218725608,32.18560854,93.91,93.79,20.84810297]
[1770218726108,32.17045552,93.908,93.79,20.84810297]
[1770218726700,32.17045552,93.908,93.82,20.84810297]
[1770218726904,32.17045552,93.984,93.828,149.44]
[1770218727111,32.17045552,93.965,93.88,9.6015]
[1770218727615,32.16260519,93.953,93.869,9.6026]
[1770218727910,32.16260519,93.953,93.85,20.84810297]
[1770218728107,32.16260519,93.951,93.862,9.6033]
[1770218728301,32.16260519,93.951,93.82,20.84810297]
[1770218728701,32.16260519,93.922,93.841,9.6054]
[1770218729313,32.16260519,93.911,93.77,26.84810297]
[1770218729506,32.16260519,93.899,93.72,20.84810297]
[1770218729712,32.17286659,93.839,93.72,20.84810297]
[1770218730006,32.17286659,93.839,93.729,149.5967]
[1770218730211,32.17286659,93.839,93.72,20.84810297]
[1770218730408,32.17286659,93.839,93.75,7.800397]
[1770218730709,32.17286659,93.839,93.68,7.800397]
[1770218730710,32.17286659,93.839,93.73,7.800397]
[1770218730913,32.17286659,93.839,93.75,7.800397]
[1770218731909,32.17286659,93.839,93.73,7.800397]
[1770218732108,32.13674863,93.825,93.742,9.6156]
[1770218732712,7.800397,93.85,93.742,9.6156]
[1770218732713,32.13674863,93.823,93.742,9.6156]
[1770218733111,32.13674863,93.823,93.71,7.800397]
[1770218733414,32.13674863,93.807,93.71,7.800397]
[1770218734410,32.13674863,93.807,93.649,227.64]
[1770218734610,149.4184,93.842,93.68,7.800397]
[1770218734611,32.12801923,93.772,93.68,7.800397]
[1770218735603,32.12801923,93.772,93.705,9.6194]
[1770218736006,32.12801923,93.772,93.68,7.800397]
[1770218736207,32.22888142,93.769,93.6,7.800397]
[1770218736407,32.22888142,93.749,93.63,7.800397]
[1770218736616,32.22888142,93.749,93.65,7.800397]
[1770218736912,32.22888142,93.749,93.67,7.800397]
[1770218737309,32.22888142,93.749,93.613,149.7823]
[1770218737513,32.22888142,93.749,93.66,7.800397]
[1770218737709,32.22888142,93.749,93.685,9.6214]
[1770218738111,32.22888142,93.749,93.7,7.800397]
[1770218738513,32.22888142,93.749,93.702,9.6197]
[1770218738718,32.23883874,93.816,93.72,7.800397]
[1770218739324,32.23883874,93.816,93.74,7.800397]
[1770218739709,32.23883874,93.816,93.75,9.6148]
[1770218741220,32.23883874,93.816,93.74,7.800397]
[1770218741818,32.23883874,93.816,93.741,9.6157]
[1770218742010,32.23883874,93.816,93.76,7.800397]
[1770218742216,32.38545947,93.839,93.76,7.800397]
[1770218742616,32.38545947,93.839,93.78,7.800397]
[1770218742816,7.800397,93.91,93.8,7.800397]
[1770218743022,32.13,93.909,93.8,7.800397]
[1770218743422,9.6007,93.889,93.804,9.6093]
[1770218744222,9.71148004,93.946,93.8,7.800397]
[1770218744223,32.13,93.908,93.821,9.6075]
[1770218744826,16.20058208,93.898,93.821,9.6075]
[1770218745123,16.20058208,93.894,93.821,9.6075]
[1770218745423,16.20058208,93.894,93.833,9.6063]
[1770218746023,16.20058208,93.894,93.844,9.6052]
[1770218746621,8.208e-05,93.894,93.87,9.6025]
[1770218746818,7.800397,93.97,93.84,7.800397]
[1770218747326,9.65369859,93.99,93.86,7.800397]
[1770218747526,7.800397,93.97,93.85,7.800397]
[1770218747928,9.594,93.954,93.873,9.6022]
[1770218748221,9.594,93.954,93.85,7.800397]
[1770218748222,7.800397,93.97,93.85,7.800397]
[1770218748423,252.84,93.969,93.85,7.800397]
[1770218748624,8.09581942,93.968,93.85,7.800397]
[1770218748817,8.09581942,93.968,93.778,149.5195]
[1770218748818,8.09581942,93.941,93.83,7.800397]
[1770218749327,8.09581942,93.924,93.83,7.800397]
[1770218750718,8.09581942,93.924,93.85,7.800397]
[1770218751622,8.09581942,93.924,93.87,7.800397]
[1770218751924,8.06446788,93.985,93.89,7.800397]
[1770218752128,8.06446788,93.985,93.87,7.800397]
[1770218752329,8.06446788,93.97,93.86,7.800397]
[1770218752832,8.06446788,93.944,93.846,9.6049]
[1770218753326,8.06446788,93.942,93.814,226.32]
[1770218753525,8.06446788,93.942,93.83,7.800397]
[1770218753722,8.06446788,93.942,93.85,7.800397]
[1770218753923,8.06446788,93.942,93.814,226.32]
[1770218753924,8.0968719,93.928,93.83,7.800397]
[1770218754120,8.0968719,93.928,93.81,7.800397]
[1770218754319,8.0968719,93.9,93.81,7.800397]
[1770218754518,8.0968719,93.942,93.85,7.800397]
[1770218755118,8.0968719,93.93,93.83,7.800397]
[1770218755521,8.0968719,93.928,93.81,7.800397]
[1770218755721,7.95813932,93.922,93.81,7.800397]
[1770218755921,7.800397,93.89,93.707,149.6327]
[1770218756121,7.95813932,93.889,93.77,7.800397]
[1770218756325,7.95813932,93.886,93.804,9.6092]
[1770218756525,7.95813932,93.886,93.81,7.800397]
[1770218757329,7.95813932,93.911,93.83,7.800397]
[1770218757529,7.95813932,93.911,93.76,7.800397]
[1770218757530,7.88160566,93.899,93.81,7.800397]
[1770218758328,19.1879,93.955,93.81,7.800397]
[1770218758329,7.88160566,93.945,93.85,7.800397]
[1770218758636,7.88160566,93.945,93.83,7.800397]
[1770218758824,7.88160566,93.942,93.842,9.6054]
[1770218759134,7.88160566,93.939,93.83,7.800397]
[1770218759335,7.88160566,93.939,93.81,7.800397]
[1770218759529,7.88160566,93.916,93.828,9.6068]
[1770218759735,7.88160566,93.916,93.81,7.800397]
[1770218760129,7.800397,93.94,93.826,9.6069]
[1770218760130,7.88949711,93.912,93.826,9.6069]
[1770218760330,7.88949711,93.939,93.83,7.800397]
[1770218760737,7.88949711,93.939,93.86,9.6035]
[1770218761046,7.88949711,93.965,93.87,7.800397]
[1770218761329,7.88949711,93.965,93.836,149.4265]
[1770218761330,7.88949711,93.992,93.89,7.800397]
[1770218761536,7.88949711,94.039,93.93,7.800397]
[1770218761731,7.88949711,94.039,93.886,149.348]
[1770218761732,7.88949711,94.039,93.969,9.5924]
[1770218761933,7.88949711,94.039,93.95,7.800397]
[1770218762130,7.88949711,94.039,93.95,9.5943]
[1770218762437,1.85146761,94.06,93.94,7.800397]
[1770218762631,7.81522226,94.064,93.969,9.5924]
[1770218762830,7.81522226,94.064,93.926,225.34]
[1770218763032,7.81522226,94.059,93.94,7.800397]
[1770218763227,7.81522226,94.058,93.94,7.800397]
[1770218763428,7.81522226,94.019,93.9,7.800397]
[1770218763827,7.67281166,94.009,93.9,7.800397]
[1770218764531,7.67281166,94.009,93.875,149.3644]
[1770218764731,7.67281166,94.009,93.839,149.4228]
[1770218764732,7.67281166,94.009,93.88,7.800397]
[1770218765034,7.67281166,94.009,93.839,149.4228]
[1770218765035,7.67281166,94.009,93.924,9.597]
[1770218765429,7.67281166,94.009,93.91,9.5984]
[1770218765733,7.6631397,94.033,93.94,7.800397]
[1770218766234,7.6631397,94.058,93.94,7.800397]
[1770218766734,7.6631397,94.049,93.959,9.5934]
[1770218766935,7.6631397,94.069,93.95,7.800397]
[1770218767238,7.6631397,94.151,93.97,149.2132]
[1770218767440,1.85092107,94.11,94.04,7.800397]
[1770218767644,7.61133468,94.109,94.041,9.585]
[1770218767939,7.61133468,94.109,94.01,7.800397]
[1770218768135,1.85009942,94.12,94.05,7.800397]
[1770218768336,8.636e-05,94.127,94.07,7.800397]
[1770218768534,8.636e-05,94.127,94.031,224.94]
[1770218768535,8.636e-05,94.127,94.057,149.0759]
[1770218768844,8.636e-05,94.127,94.043,149.0987]
[1770218769133,8.636e-05,94.127,94.031,224.94]
[1770218769331,8.636e-05,94.127,94.04,20.75807934]
[1770218769531,7.075e-05,94.167,94.062,149.0685]
[1770218769733,20.75807934,94.22,94.081,149.0383]
[1770218769934,20.75807934,94.22,94.06,20.75807934]
[1770218770135,250.7,94.224,94.06,20.75807934]
[1770218770340,20.75807934,94.22,94.06,20.75807934]
[1770218770536,250.88,94.219,94.03,20.75807934]
[1770218770735,9.5727,94.163,94.035,9.5856]
[1770218770934,20.75807934,94.17,94.0,20.75807934]
[1770218771129,20.75807934,94.17,93.998,225.7]
[1770218771130,20.75807934,94.18,94.034,149.1129]
[1770218771334,20.75807934,94.18,94.076,9.5815]
[1770218771533,4.46971559,94.149,93.995,149.1744]
[1770218771832,4.46971559,94.146,94.028,9.5863]
[1770218772233,4.46971559,94.139,94.042,9.5849]
[1770218772641,4.46971559,94.139,93.97,20.75807934]
[1770218772835,148.9051,94.166,93.996,9.5896]
[1770218772836,4.46971559,94.109,93.996,9.5896]
[1770218773045,4.46971559,94.107,93.94,20.75807934]
[1770218773338,4.46971559,94.105,93.979,149.2003]
[1770218773538,4.46971559,94.105,93.985,149.1906]
[1770218773739,4.46971559,94.105,93.964,225.9]
[1770218773740,4.49051539,94.103,93.94,20.75807934]
[1770218773940,4.49051539,94.086,93.91,20.75807934]
[1770218774132,4.49051539,94.059,93.91,20.75807934]
[1770218774339,4.49051539,94.029,93.88,20.75807934]
[1770218774533,4.49051539,94.027,93.882,149.3534]
[1770218774741,4.49051539,94.009,93.88,20.75807934]
[1770218774936,4.49051539,94.009,93.857,149.3927]
[1770218775146,4.49051539,94.009,93.85,20.75807934]
[1770218775340,4.49051539,93.993,93.823,226.26]
[1770218775537,4.49051539,93.979,93.823,226.26]
[1770218775737,4.37076335,93.949,93.799,149.4862]
[1770218776038,4.37076335,93.948,93.79,20.75807934]
[1770218776642,4.37076335,93.918,93.73,20.75807934]
[1770218776943,149.2806,93.929,93.73,20.75807934]
[1770218776944,9.6015,93.881,93.752,9.6145]
[1770218777143,4.37076335,93.88,93.752,9.6145]
[1770218777538,4.37076335,93.874,93.752,9.6145]
[1770218778043,4.25057938,93.87,93.718,226.68]
[1770218778646,4.25057938,93.869,93.718,226.68]
[1770218778840,4.25057938,93.869,93.752,9.6146]
[1770218779546,4.25057938,93.927,93.8,31.36553766]
[1770218779943,4.25057938,93.927,93.796,226.7]
[1770218780337,4.22167725,93.926,93.808,9.6088]
[1770218780536,4.22167725,93.926,93.78,31.36553766]
[1770218780744,4.22167725,93.926,93.782,149.5122]
[1770218781046,4.22167725,93.926,93.824,9.6072]
[1770218781547,4.22167725,93.926,93.807,9.6089]
[1770218781845,4.22167725,93.926,93.788,149.5036]
[1770218782046,4.22167725,93.926,93.823,9.6073]
[1770218783240,4.19521859,93.924,93.78,31.36553766]
[1770218783443,4.19521859,93.924,93.748,226.62]
[1770218783444,4.19521859,93.92,93.75,31.36553766]
[1770218783642,4.19521859,93.899,93.75,31.36553766]
[1770218783940,4.39306534,93.889,93.75,31.36553766]
[1770218784338,4.39306534,93.889,93.768,9.6129]
[1770218784737,4.39306534,93.889,93.75,31.36553766]
[1770218784939,4.39306534,93.889,93.785,9.6112]
[1770218786844,4.39306534,93.889,93.8,9.6097]
[1770218787744,4.39306534,93.889,93.801,2.66708788]
[1770218787952,4.39306534,93.889,93.802,2.66708788]
[1770218788249,4.39306534,93.889,93.746,149.5698]
[1770218788250,4.39306534,93.889,93.803,2.66708788]
[1770218788442,4.39306534,93.889,93.804,2.66708788]
[1770218788752,4.39306534,93.889,93.805,2.66708788]
[1770218788950,4.42402889,93.886,93.806,2.66708788]
[1770218789150,4.42402889,93.886,93.749,149.5661]
[1770218789151,4.42402889,93.886,93.807,2.66708788]
[1770218789354,4.42402889,93.886,93.808,2.66708788]
[1770218789549,4.42402889,93.886,93.749,149.5661]
[1770218789550,4.42402889,93.886,93.809,2.66708788]
[1770218789748,4.42402889,93.886,93.81,2.66708788]
[1770218789952,4.42402889,93.886,93.811,2.66708788]
[1770218790151,4.42906189,93.885,93.812,2.66708788]
[1770218790452,4.42906189,93.885,93.744,226.48]
[1770218790453,4.42906189,93.885,93.746,1.80831488]
[1770218790650,3.98437948,93.871,93.771,9.6126]
[1770218791356,3.98437948,93.871,93.746,1.80831488]
[1770218791357,3.98437948,93.865,93.755,9.6142]
[1770218791558,3.98437948,93.848,93.701,1.80831488]
[1770218791849,3.98437948,93.845,93.728,1.90068204]
[1770218792054,3.98437948,93.844,93.728,1.90068204]
[1770218792448,3.98437948,93.844,93.738,9.616]
[1770218792752,3.98437948,93.844,93.728,1.90068204]
[1770218792949,3.98437948,93.842,93.751,9.6147]
[1770218793744,3.98437948,93.842,93.763,9.6134]
[1770218793957,3.98437948,93.842,93.764,1.96606146]
[1770218794144,3.98437948,93.842,93.772,9.6125]
[1770218794345,3.98437948,93.842,93.721,1.96606146]
[1770218794756,3.98437948,93.818,93.695,1.96606146]
[1770218795252,3.98437948,93.807,93.672,1.96606146]
[1770218795956,3.98437948,93.806,93.699,9.6201]
[1770218796157,3.98437948,93.806,93.699,11.57599079]
[1770218796453,3.98437948,93.789,93.699,1.95589079]
[1770218797052,31.36553766,93.83,93.705,1.95589079]
[1770218797053,3.98437948,93.815,93.705,1.95589079]
[1770218797760,3.98437948,93.801,93.705,1.95589079]
[1770218797964,3.98437948,93.801,93.691,9.6209]
[1770218797965,36.11437948,93.799,93.679,1.64256691]
[1770218798158,3.98437948,93.798,93.679,1.64256691]
[1770218798355,3.98437948,93.772,93.679,1.64256691]
[1770218798553,31.36553766,93.77,93.617,225.24]
[1770218798865,3.98437948,93.721,93.625,1.64256691]
[1770218799259,3.98437948,93.748,93.625,1.64256691]
[1770218799458,3.98437948,93.748,93.66,9.624]
[1770218799665,3.98437948,93.748,93.627,1.56133097]
[1770218799856,3.98437948,93.718,93.627,1.56133097]
[1770218800258,3.98437948,93.718,93.561,1.56133097]
[1770218800559,3.98437948,93.716,93.587,1.56133097]
[1770218801363,3.98437948,93.716,93.636,9.6265]
[1770218801557,3.98437948,93.716,93.612,1.56133097]
[1770218801959,3.98437948,93.711,93.612,1.56133097]
[1770218802263,3.98437948,93.739,93.612,1.56133097]
[1770218802466,3.98437948,93.739,93.64,2.61717133]
[1770218802661,3.98437948,93.739,93.642,2.61717133]
[1770218802864,3.98437948,93.739,93.643,2.67124357]
[1770218803062,3.98437948,93.738,93.643,9.6258]
[1770218803264,3.98437948,93.738,93.644,2.67104296]
[1770218803568,3.98437948,93.738,93.645,2.6710386]
[1770218803766,3.98437948,93.738,93.654,9.6247]
[1770218803967,3.98437948,93.738,93.642,2.61717133]
[1770218804367,3.98437948,93.738,93.557,149.8721]
[1770218804368,3.98437948,93.714,93.614,2.74032306]
[1770218805069,3.98437948,93.702,93.589,2.74032306]
[1770218805261,3.98437948,93.702,93.591,2.74032306]
[1770218805569,3.98437948,93.702,93.593,2.74032306]
[1770218805861,3.98437948,93.7,93.615,9.6286]
[1770218806461,3.98437948,93.696,93.593,2.74032306]
[1770218806670,3.98437948,93.696,93.561,2.69598772]
[1770218806863,3.98437948,93.679,93.563,2.69598772]
[1770218807063,3.98437948,93.679,93.564,2.67287269]
[1770218807265,3.98437948,93.659,93.568,9.6335]
[1770218807459,3.98437948,93.659,93.563,2.69598772]
[1770218807975,31.36553766,93.68,93.578,9.6324]
[1770218807976,3.98437948,93.658,93.578,9.6324]
[1770218808270,3.98437948,93.658,93.578,12.29712496]
[1770218808464,3.98437948,93.658,93.591,9.6312]
[1770218808767,3.98437948,93.698,93.578,2.66472496]
[1770218808967,3.98437948,93.657,93.578,2.66472496]
[1770218809265,3.98437948,93.657,93.552,2.66472496]
[1770218809866,3.98437948,93.655,93.577,9.6325]
[1770218810066,3.98437948,93.655,93.552,2.66472496]
[1770218810568,3.98437948,93.654,93.552,2.66472496]
[1770218811163,3.98437948,93.654,93.575,2.58590047]
[1770218812868,3.98437948,93.654,93.53,31.36553766]
[1770218813177,3.98437948,93.654,93.55,2.05979196]
[1770218813567,3.98437948,93.634,93.552,9.6351]
[1770218813766,3.98437948,93.634,93.521,1.97168794]
[1770218814063,9.6281,93.621,93.53,9.6374]
[1770218814264,3.8800218,93.62,93.521,1.97168794]
[1770218814568,3.8800218,93.618,93.497,1.97168794]
[1770218814766,3.8800218,93.598,93.498,2.67464193]
[1770218814963,32.08,93.589,93.449,1.97168794]
[1770218815161,32.08,93.589,93.421,19.2973]
[1770218815162,3.8800218,93.588,93.451,1.97168794]
[1770218815363,31.36553766,93.59,93.478,1.97168794]
[1770218815364,3.8800218,93.578,93.478,1.97168794]
[1770218815565,3.8800218,93.578,93.48,1.97168794]
[1770218815767,3.8800218,93.578,93.5,9.6405]
[1770218815972,3.8800218,93.578,93.482,2.00881609]
[1770218816170,3.8800218,93.578,93.484,2.00881609]
[1770218816367,3.8800218,93.578,93.486,2.00881609]
[1770218816771,3.8800218,93.578,93.461,2.00881609]
[1770218817072,3.8800218,93.578,93.463,2.00881609]
[1770218817272,3.8800218,93.578,93.465,2.00881609]
[1770218817465,3.8800218,93.578,93.427,150.081]
[1770218817466,3.8800218,93.578,93.495,9.641]
[1770218817968,3.82567219,93.571,93.473,9.6432]
[1770218818166,3.82567219,93.571,93.467,2.00881609]
[1770218818966,3.82567219,93.569,93.467,2.00881609]
[1770218819271,3.82567219,93.562,93.478,9.6428]
[1770218819471,3.82567219,93.562,93.467,2.00881609]
[1770218819869,3.82567219,93.533,93.457,9.645]
[1770218820266,3.82567219,93.533,93.459,9.6447]
[1770218820464,3.82567219,93.533,93.44,1.90051319]
[1770218820872,3.82567219,93.523,93.416,1.90051319]
[1770218821078,3.82567219,93.521,93.371,1.90051319]
[1770218821464,3.82567219,93.487,93.371,1.90051319]
[1770218822069,3.82567219,93.487,93.397,9.6511]
[1770218822269,3.82567219,93.487,93.371,1.90051319]
[1770218822667,3.82567219,93.487,93.394,1.45209183]
[1770218822867,3.82567219,93.487,93.37,1.45209183]
[1770218823777,3.82567219,93.479,93.37,1.45209183]
[1770218824373,3.82567219,93.479,93.391,9.6518]
[1770218824570,3.82567219,93.479,93.37,1.45209183]
[1770218824969,32.08,93.53,93.37,1.45209183]
[1770218824970,3.82567219,93.529,93.398,1.24739787]
[1770218825279,3.82567219,93.529,93.401,1.24739787]
[1770218825476,3.82567219,93.501,93.403,1.24739787]
[1770218826972,3.82567219,93.501,93.426,9.6481]
[1770218827174,250.8,93.542,93.39,31.36553766]
[1770218827175,250.8,93.542,93.427,1.22897002]
[1770218827371,3.82567219,93.541,93.427,1.22897002]
[1770218827571,3.82567219,93.538,93.442,1.22897002]
[1770218828081,3.82567219,93.536,93.448,1.26685923]
[1770218828672,3.82567219,93.536,93.467,9.6439]
[1770218828883,3.82567219,93.536,93.448,1.26685923]
[1770218829278,3.82567219,93.521,93.428,9.6479]
[1770218829674,3.82567219,93.521,93.423,1.26685923]
[1770218830275,3.82567219,93.508,93.397,1.16640536]
[1770218830483,3.82567219,93.498,93.373,1.16640536]
[1770218830781,3.82567219,93.488,93.395,9.6513]
[1770218830981,3.82567219,93.488,93.373,1.16640536]
[1770218831484,3.82567219,93.464,93.373,1.16640536]
[1770218831778,3.82567219,93.499,93.373,1.16640536]
[1770218831981,3.82567219,93.499,93.418,9.649]
[1770218832183,3.82567219,93.499,93.412,1.11429325]
[1770218832483,9.6411,93.495,93.412,1.11429325]
[1770218832674,3.82567219,93.494,93.412,1.11429325]
[1770218833079,3.82567219,93.491,93.412,1.11429325]
[1770218833376,3.82567219,93.525,93.412,1.11429325]
[1770218833580,31.36553766,93.53,93.433,9.6474]
[1770218833581,3.82567219,93.519,93.433,9.6474]
[1770218833877,3.82567219,93.519,93.412,1.11429325]
[1770218834081,250.2,93.554,93.45,1.07156311]
[1770218834082,3.82567219,93.546,93.45,1.07156311]
[1770218834479,3.82567219,93.546,93.424,1.07156311]
[1770218834684,3.82567219,93.522,93.437,9.647]
[1770218835284,3.82567219,93.522,93.449,9.6458]
[1770218835484,3.82567219,93.522,93.424,1.07156311]
[1770218835681,9.6358,93.547,93.469,9.6437]
[1770218835878,3.82567219,93.546,93.469,9.6437]
[1770218836284,3.82567219,93.544,93.459,9.6447]
[1770218836789,3.82567219,93.541,93.459,9.6447]
[1770218837088,3.82567219,93.541,93.473,9.6433]
[1770218837690,3.82567219,93.541,93.483,9.6422]
[1770218837888,3.82567219,93.541,93.455,1.02275766]
[1770218838388,3.82567219,93.541,93.479,9.6427]
[1770218838784,3.82567219,93.565,93.455,1.02275766]
[1770218838985,3.82567219,93.565,93.463,0.98681761]
[1770218839189,31.36553766,93.62,93.463,0.98681761]
[1770218839190,3.82567219,93.619,93.463,0.98681761]
[1770218839692,3.82567219,93.618,93.463,0.98681761]
[1770218839891,3.82567219,93.618,93.46,31.36553766]
[1770218839892,3.82567219,93.592,93.5,1.033704]
[1770218840486,3.82567219,93.576,93.501,9.6404]
[1770218840688,3.82567219,93.576,93.436,150.0669]
[1770218840689,3.82567219,93.631,93.502,1.033704]
[1770218840992,3.82567219,93.631,93.541,1.033704]
[1770218841487,9.6293,93.61,93.53,9.6374]
[1770218841689,3.82567219,93.631,93.53,9.6374]
[1770218841690,3.82567219,93.631,93.53,10.671104]
[1770218841885,3.82567219,93.631,93.53,1.033704]
[1770218842990,3.82567219,93.631,93.561,9.6342]